fUSD/lending_fUSD_20250511
["ID","MTS","AMOUNT","RATE_DAILY","PERIOD"]
[360747938,1746965445955,-400.0,0.0001986,2]
[360747940,1746965445964,-1521.19,0.0001986,2]
[360747941,1746965445974,-400.0,0.0001986,2]
[360747942,1746965445983,-400.0,0.0001986,2]
[360747943,1746965445992,-400.0,0.0001986,2]
[360747944,1746965446003,-554.83,0.0001986,2]
[360747945,1746965446012,-741.38,0.0001986,2]
[360747946,1746965446021,-400.0,0.0001986,2]
[360747947,1746965446030,-593.22,0.0001986,2]
[360747948,1746965446039,-400.0,0.0001986,2]
[360747949,1746965446048,-888.33098733,0.00019861,2]
[360747950,1746965446058,-400.0,0.00019861,2]
[360747951,1746965446067,-400.0,0.00019861,2]
[360747952,1746965446077,-450.0,0.00019861,2]
[360747953,1746965446087,-400.0,0.00019861,2]
[360747954,1746965446096,-400.0,0.00019861,2]
[360747955,1746965446105,-400.0,0.00019861,2]
[360747956,1746965446115,-400.0,0.00019861,2]
[360747957,1746965446124,-378.01285131,0.00019861,2]
[360747958,1746965446134,-400.0,0.00019861,2]
[360747959,1746965446143,-400.0,0.00019861,2]
[360747960,1746965446152,-400.0,0.00019861,2]
[360747961,1746965446161,-400.0,0.00019861,2]
[360747962,1746965446170,-400.0,0.00019861,2]
[360747963,1746965446180,-400.0,0.00019861,2]
[360747964,1746965446190,-400.0,0.00019861,2]
[360747965,1746965446199,-500.0,0.00019861,2]
[360747966,1746965446209,-400.0,0.00019861,2]
[360747967,1746965446219,-400.0,0.00019861,2]
[360747968,1746965446228,-400.0,0.00019861,2]
[360747969,1746965446238,-400.0,0.00019861,2]
[360747970,1746965446249,-400.0,0.00019861,2]
[360747971,1746965446259,-415.44,0.00019861,2]
[360747972,1746965446268,-400.0,0.00019861,2]
[360747973,1746965446277,-400.0,0.00019861,2]
[360747974,1746965446288,-400.0,0.00019861,2]
[360747975,1746965446297,-400.0,0.00019861,2]
[360747976,1746965446307,-400.0,0.00019861,2]
[360747977,1746965446315,-400.0,0.00019861,2]
[360747978,1746965446325,-400.0,0.00019861,2]
[360747979,1746965446335,-400.0,0.00019861,2]
[360747980,1746965446345,-437.03,0.00019861,2]
[360747981,1746965446354,-400.0,0.00019861,2]
[360747982,1746965446364,-400.0,0.00019861,2]
[360747983,1746965446373,-400.0,0.00019861,2]
[360747984,1746965446383,-524.35,0.00019861,2]
[360747985,1746965446392,-400.0,0.00019861,2]
[360747986,1746965446401,-421.83,0.00019861,2]
[360747987,1746965446411,-400.0,0.00019861,2]
[360747988,1746965446421,-400.0,0.00019861,2]
[360747989,1746965446434,-400.0,0.00019861,2]
[360747990,1746965446443,-400.0,0.00019861,2]
[360747991,1746965446453,-400.0,0.00019861,2]
[360747992,1746965446462,-400.0,0.00019861,2]
[360747993,1746965446471,-400.0,0.00019861,2]
[360747994,1746965446481,-400.0,0.00019861,2]
[360747995,1746965446490,-434.68,0.00019861,2]
[360747996,1746965446500,-400.0,0.00019861,2]
[360747997,1746965446509,-400.0,0.00019861,2]
[360747998,1746965446519,-310.68612406,0.00019861,2]
[360747999,1746965446528,-400.0,0.00019861,2]
[360748000,1746965446537,-400.0,0.00019861,2]
[360748001,1746965446546,-400.0,0.00019861,2]
[360748002,1746965446555,-400.0,0.00019861,2]
[360748003,1746965446565,-400.0,0.00019861,2]
[360748004,1746965446574,-400.0,0.00019861,2]
[360748005,1746965446583,-400.0,0.00019861,2]
[360748006,1746965446593,-400.0,0.00019861,2]
[360748007,1746965446603,-250.0,0.00019861,2]
[360748008,1746965446612,-400.0,0.00019861,2]
[360748009,1746965446623,-400.0,0.00019861,2]
[360748010,1746965446632,-400.0,0.00019861,2]
[360748011,1746965446641,-400.0,0.00019861,2]
[360748012,1746965446651,-400.0,0.00019861,2]
[360748013,1746965446659,-250.0,0.00019861,2]
[360748014,1746965446668,-400.0,0.00019861,2]
[360748015,1746965446680,-400.0,0.00019861,2]
[360748016,1746965446690,-400.0,0.00019861,2]
[360748017,1746965446699,-410.74,0.00019861,2]
[360748018,1746965446708,-200.0,0.00019861,2]
[360748019,1746965446717,-400.0,0.00019861,2]
[360748020,1746965446727,-552.22,0.00019861,2]
[360748021,1746965446737,-400.0,0.00019861,2]
[360748022,1746965446746,-400.0,0.00019861,2]
[360748023,1746965446756,-400.0,0.00019861,2]
[360748024,1746965446765,-217.48385166,0.00019861,2]
[360748025,1746965446778,-400.0,0.00019861,2]
[360748026,1746965446787,-400.0,0.00019861,2]
[360748027,1746965446796,-400.0,0.00019861,2]
[360748028,1746965446805,-400.0,0.00019861,2]
[360748029,1746965446814,-400.0,0.00019861,2]
[360748030,1746965446823,-400.0,0.00019861,2]
[360748031,1746965446832,-400.0,0.00019861,2]
[360748032,1746965446841,-1408.63,0.00019861,2]
[360748033,1746965446851,-400.0,0.00019861,2]
[360748034,1746965446861,-400.0,0.00019861,2]
[360748035,1746965446870,-400.0,0.00019861,2]
[360748036,1746965446879,-400.0,0.00019861,2]
[360748037,1746965446888,-400.0,0.00019861,2]
[360748038,1746965446898,-400.0,0.00019861,2]
[360748039,1746965446907,-400.0,0.00019861,2]
[360748040,1746965446917,-400.0,0.00019861,2]
[360748041,1746965446930,-1356.76,0.00019861,2]
[360748042,1746965446939,-400.0,0.00019861,2]
[360748043,1746965446948,-1468.11,0.00019861,2]
[360748044,1746965446958,-400.0,0.00019861,2]
[360748045,1746965446966,-400.0,0.00019861,2]
[360748046,1746965446977,-549.32,0.00019861,2]
[360748047,1746965446986,-400.0,0.00019861,2]
[360748048,1746965446995,-400.0,0.00019861,2]
[360748049,1746965447006,-400.0,0.00019861,2]
[360748050,1746965447015,-400.0,0.00019861,2]
[360748051,1746965447023,-400.0,0.00019861,2]
[360748052,1746965447032,-400.0,0.00019861,2]
[360748053,1746965447041,-400.0,0.00019861,2]
[360748054,1746965447050,-400.0,0.00019861,2]
[360748055,1746965447059,-637.15,0.00019861,2]
[360748056,1746965447069,-1405.51,0.00019861,2]
[360748057,1746965447077,-1107.81,0.00019861,2]
[360748058,1746965447087,-400.0,0.00019861,2]
[360748059,1746965447096,-400.0,0.00019861,2]
[360748060,1746965447105,-400.0,0.00019861,2]
[360748061,1746965447114,-400.0,0.00019861,2]
[360748062,1746965447123,-460.98612458,0.00019861,2]
[360748063,1746965447133,-400.0,0.00019861,2]
[360748064,1746965447142,-432.75,0.00019861,2]
[360748065,1746965447151,-400.0,0.00019861,2]
[360748066,1746965447160,-400.0,0.00019861,2]
[360748067,1746965447169,-400.0,0.00019861,2]
[360748068,1746965447180,-301.46,0.00019861,2]
[360748069,1746965447190,-151.0,0.00019861,2]
[360748070,1746965447199,-400.0,0.00019861,2]
[360748071,1746965447209,-865.47,0.00019861,2]
[360748072,1746965447218,-400.0,0.00019861,2]
[360748073,1746965447227,-400.0,0.00019861,2]
[360748074,1746965447237,-400.0,0.00019861,2]
[360748075,1746965447247,-400.0,0.00019861,2]
[360748076,1746965447256,-631.23,0.00019861,2]
[360748077,1746965447265,-400.0,0.00019861,2]
[360748078,1746965447275,-500.0,0.00019861,2]
[360748079,1746965447284,-400.0,0.00019861,2]
[360748080,1746965447294,-400.0,0.00019861,2]
[360748081,1746965447304,-400.0,0.00019861,2]
[360748082,1746965447313,-400.0,0.00019861,2]
[360748083,1746965447322,-400.0,0.00019861,2]
[360748084,1746965447332,-400.0,0.00019861,2]
[360748085,1746965447342,-400.0,0.00019861,2]
[360748086,1746965447351,-400.0,0.00019861,2]
[360748087,1746965447361,-400.0,0.00019861,2]
[360748088,1746965447370,-218.39821787,0.00019861,2]
[360748089,1746965447380,-400.0,0.00019861,2]
[360748090,1746965447390,-400.0,0.00019861,2]
[360748091,1746965447399,-400.0,0.00019861,2]
[360748092,1746965447409,-400.0,0.00019861,2]
[360748093,1746965447419,-400.0,0.00019861,2]
[360748094,1746965447429,-400.0,0.00019861,2]
[360748095,1746965447438,-400.0,0.00019861,2]
[360748096,1746965447448,-400.0,0.00019861,2]
[360748097,1746965447457,-400.0,0.00019861,2]
[360748098,1746965447467,-723.15,0.00019861,2]
[360748099,1746965447476,-400.0,0.00019861,2]
[360748100,1746965447487,-400.0,0.00019861,2]
[360748101,1746965447496,-639.46,0.00019861,2]
[360748102,1746965447507,-151.0,0.00019861,2]
[360748103,1746965447516,-400.0,0.00019861,2]
[360748104,1746965447527,-400.0,0.00019861,2]
[360748105,1746965447538,-400.0,0.00019861,2]
[360748106,1746965447547,-400.0,0.00019861,2]
[360748107,1746965447556,-400.0,0.00019861,2]
[360748108,1746965447565,-400.0,0.00019861,2]
[360748109,1746965447575,-400.0,0.00019861,2]
[360748110,1746965447585,-412.95,0.00019861,2]
[360748111,1746965447595,-449.89789441,0.00019861,2]
[360748112,1746965447606,-400.0,0.00019861,2]
[360748113,1746965447615,-400.0,0.00019861,2]
[360748114,1746965447625,-400.0,0.00019861,2]
[360748115,1746965447635,-400.0,0.00019861,2]
[360748116,1746965447644,-400.0,0.00019861,2]
[360748117,1746965447654,-441.12,0.00019861,2]
[360748118,1746965447664,-428.63,0.00019861,2]
[360748119,1746965447673,-400.0,0.00019861,2]
[360748120,1746965447686,-400.0,0.00019861,2]
[360748121,1746965447695,-400.0,0.00019861,2]
[360748122,1746965447705,-400.0,0.00019861,2]
[360748123,1746965447715,-457.21889492,0.00019861,2]
[360748124,1746965447724,-400.0,0.00019861,2]
[360748125,1746965447734,-676.36,0.00019861,2]
[360748126,1746965447743,-546.94,0.00019861,2]
[360748127,1746965447753,-400.0,0.00019861,2]
[360748128,1746965447763,-400.0,0.00019861,2]
[360748129,1746965447772,-400.0,0.00019861,2]
[360748130,1746965447782,-400.0,0.00019861,2]
[360748131,1746965447791,-451.74,0.00019861,2]
[360748132,1746965447800,-400.0,0.00019861,2]
[360748133,1746965447810,-432.98,0.00019861,2]
[360748134,1746965447819,-508.02,0.00019861,2]
[360748135,1746965447829,-151.0,0.00019861,2]
[360748136,1746965447839,-500.92,0.00019861,2]
[360748137,1746965447849,-151.0,0.00019861,2]
[360748138,1746965447859,-456.09,0.00019861,2]
[360748139,1746965447868,-151.0,0.00019861,2]
[360748140,1746965447877,-563.92,0.00019861,2]
[360748141,1746965447887,-400.0,0.00019861,2]
[360748142,1746965447897,-400.0,0.00019861,2]
[360748143,1746965447906,-151.708642,0.00019861,2]
[360748144,1746965447916,-400.0,0.00019861,2]
[360748145,1746965447926,-151.0,0.00019861,2]
[360748146,1746965447939,-395.79540924,0.00019861,2]
[360748147,1746965447948,-412.95267447,0.00019861,2]
[360748148,1746965447958,-347.38409098,0.00019861,2]
[360748149,1746965447967,-400.0,0.00019861,2]
[360748150,1746965447978,-177.58,0.00019861,2]
[360748151,1746965447987,-400.0,0.00019861,2]
[360748152,1746965447997,-151.0,0.00019861,2]
[360748153,1746965448007,-400.0,0.00019861,2]
[360748154,1746965448016,-400.0,0.00019861,2]
[360748155,1746965448027,-151.0,0.00019861,2]
[360748156,1746965448036,-672.72,0.00019861,2]
[360748157,1746965448045,-400.0,0.00019861,2]
[360748158,1746965448055,-400.0,0.00019861,2]
[360748159,1746965448065,-2294.37,0.00019861,2]
[360748160,1746965448075,-400.0,0.00019861,2]
[360748161,1746965448084,-151.0,0.00019861,2]
[360748162,1746965448094,-151.0,0.00019861,2]
[360748163,1746965448103,-1610.17,0.00019861,2]
[360748164,1746965448113,-24.37327595,0.00019861,2]
[360748165,1746965448130,-494.51672405,0.00019861,2]
[360748166,1746965448139,-355.48327595,0.00019861,2]
[360748167,1746965448362,-400.0,0.00019835,2]
[360748168,1746965448372,-400.0,0.00019836,2]
[360748169,1746965448382,-44.51672405,0.00019861,2]
[360748170,1746965448393,-183.668339,0.00019861,2]
[360748171,1746965448403,-3223.43,0.00019861,2]
[360748172,1746965448414,-400.0,0.00019861,2]
[360748173,1746965448424,-1258.66,0.00019861,2]
[360748174,1746965448438,-1219.56,0.00019861,2]
[360748175,1746965448448,-400.0,0.00019861,2]
[360748176,1746965448457,-151.0,0.00019861,2]
[360748177,1746965448467,-400.0,0.00019861,2]
[360748178,1746965448477,-400.0,0.00019861,2]
[360748179,1746965448487,-1456.44,0.00019861,2]
[360748180,1746965448496,-400.0,0.00019861,2]
[360748181,1746965448506,-553.31,0.00019861,2]
[360748182,1746965448516,-1575.73,0.00019861,2]
[360748183,1746965448526,-400.0,0.00019861,2]
[360748184,1746965448536,-400.0,0.00019861,2]
[360748185,1746965448545,-525.48,0.00019861,2]
[360748186,1746965448555,-400.0,0.00019861,2]
[360748187,1746965448565,-371.85,0.00019861,2]
[360748188,1746965448575,-508.24,0.00019861,2]
[360748189,1746965448585,-202.478738,0.00019861,2]
[360748190,1746965448595,-400.0,0.00019861,2]
[360748191,1746965448605,-1001.77,0.00019861,2]
[360748192,1746965448614,-400.0,0.00019861,2]
[360748193,1746965448624,-202.478738,0.00019861,2]
[360748194,1746965448633,-151.0,0.00019861,2]
[360748195,1746965448643,-400.0,0.00019861,2]
[360748196,1746965448652,-7161.53,0.00019861,2]
[360748197,1746965448662,-400.0,0.00019861,2]
[360748198,1746965448671,-7271.45,0.00019861,2]
[360748199,1746965448684,-266.02874887,0.00019861,2]
[360748200,1746965448701,-133.97125113,0.00019861,2]
[360748201,1746965448711,-1587.43,0.00019861,2]
[360748202,1746965448721,-7257.47495055,0.00019861,2]
[360748203,1746965448778,-400.0,0.00019835,2]
[360748204,1746965448788,-2042.55504945,0.00019861,2]
[360748205,1746965448798,-400.0,0.00019861,2]
[360748206,1746965448808,-612.68767295,0.00019861,2]
[360748207,1746965448820,-261.81012156,0.00019861,2]
[360748208,1746965448832,-125.50220549,0.00019861,2]
[360748209,1746965448842,-400.0,0.00019861,2]
[360748210,1746965448852,-71.77278641,0.00019861,2]
[360748211,1746965448864,-2065.35721359,0.00019861,2]
[360748212,1746965448874,-151.0,0.00019861,2]
[360748213,1746965448884,-400.0,0.00019861,2]
[360748214,1746965448894,-400.0,0.00019861,2]
[360748215,1746965448903,-4394.25,0.00019861,2]
[360748216,1746965448914,-500.0,0.00019861,2]
[360748217,1746965448926,-400.0,0.00019861,2]
[360748218,1746965448939,-358.19278641,0.00019861,2]
[360748219,1746965448977,-41.80721359,0.00019861,2]
[360748220,1746965448987,-343.32231309,0.00019861,2]
[360748221,1746965448997,-3842.53,0.00019861,2]
[360748222,1746965449009,-400.0,0.00019861,2]
[360748223,1746965449020,-151.0,0.00019861,2]
[360748224,1746965449030,-152.71022,0.00019861,2]
[360748225,1746965449041,-400.0,0.00019861,2]
[360748226,1746965449051,-400.0,0.00019861,2]
[360748227,1746965449061,-400.0,0.00019861,2]
[360748228,1746965449071,-151.616054,0.00019861,2]
[360748229,1746965449081,-400.0,0.00019861,2]
[360748230,1746965449091,-277.409995,0.00019861,2]
[360748231,1746965449101,-277.409995,0.00019861,2]
[360748232,1746965449111,-400.0,0.00019861,2]
[360748233,1746965449122,-400.0,0.00019861,2]
[360748234,1746965449132,-2639.16,0.00019861,2]
[360748235,1746965449142,-400.0,0.00019861,2]
[360748236,1746965449152,-400.0,0.00019861,2]
[360748237,1746965449162,-400.0,0.00019861,2]
[360748238,1746965449172,-400.0,0.00019861,2]
[360748239,1746965449183,-400.0,0.00019861,2]
[360748240,1746965449194,-400.0,0.00019861,2]
[360748241,1746965449204,-400.0,0.00019861,2]
[360748242,1746965449215,-400.0,0.00019861,2]
[360748243,1746965449225,-400.0,0.00019861,2]
[360748244,1746965449235,-400.0,0.00019861,2]
[360748245,1746965449246,-400.0,0.00019861,2]
[360748246,1746965449257,-400.0,0.00019861,2]
[360748247,1746965449267,-400.0,0.00019861,2]
[360748248,1746965449278,-400.0,0.00019861,2]
[360748249,1746965449288,-444.9,0.00019861,2]
[360748250,1746965449298,-403.16,0.00019861,2]
[360748251,1746965449308,-400.0,0.00019861,2]
[360748252,1746965449319,-400.0,0.00019861,2]
[360748253,1746965449329,-400.0,0.00019861,2]
[360748254,1746965449340,-400.0,0.00019861,2]
[360748255,1746965449350,-400.0,0.00019861,2]
[360748256,1746965449360,-400.0,0.00019861,2]
[360748257,1746965449371,-400.0,0.00019861,2]
[360748258,1746965449381,-400.0,0.00019861,2]
[360748259,1746965449391,-400.0,0.00019861,2]
[360748260,1746965449400,-1154.06,0.00019861,2]
[360748261,1746965449410,-400.0,0.00019861,2]
[360748262,1746965449421,-400.0,0.00019861,2]
[360748263,1746965449433,-400.0,0.00019861,2]
[360748264,1746965449444,-400.0,0.00019861,2]
[360748265,1746965449454,-400.0,0.00019861,2]
[360748266,1746965449465,-459.33,0.00019861,2]
[360748267,1746965449476,-400.0,0.00019861,2]
[360748268,1746965449487,-424.91,0.00019861,2]
[360748269,1746965449703,-400.0,0.00019861,2]
[360748270,1746965449714,-400.0,0.00019861,2]
[360748271,1746965449724,-400.0,0.00019861,2]
[360748272,1746965449733,-406.76,0.00019861,2]
[360748273,1746965449743,-400.0,0.00019861,2]
[360748274,1746965449754,-548.0090844,0.00019861,2]
[360748275,1746965449764,-400.0,0.00019861,2]
[360748276,1746965449774,-538.22,0.00019861,2]
[360748277,1746965449784,-400.0,0.00019861,2]
[360748278,1746965449794,-400.0,0.00019861,2]
[360748279,1746965449803,-400.0,0.00019861,2]
[360748280,1746965449813,-400.0,0.00019861,2]
[360748281,1746965449823,-400.0,0.00019861,2]
[360748282,1746965449833,-400.0,0.00019861,2]
[360748283,1746965449842,-86825.21453879,0.00019862,2]
[360748285,1746965930612,517.59,0.00016844,2]
[360748286,1746966068033,220.28114263,0.0001676,2]
[360748287,1746966068198,150.0,0.000185,5]
[360748288,1746966230082,2000.0,0.00028,120]
[360748289,1746966241239,1052.1,0.00025787,120]
[360748290,1746966426116,-622.717349,0.00018476,2]
[360748291,1746966426137,-151.0,0.00018569,2]
[360748292,1746966426159,-308.28468068,0.00018638,2]
[360748293,1746966450115,-691.71531932,0.00018638,2]
[360748294,1746966450135,-183.29,0.00018656,2]
[360748295,1746966450155,-194.48452103,0.00018702,2]
[360748314,1746966632728,-187.803579,0.0001866,2]
[360748315,1746966632737,-199.96547897,0.00018702,2]
[360748316,1746966632746,-1052.1,0.00018754,2]
[360748317,1746966632756,-5640.7,0.00018832,2]
[360748318,1746966632766,-155.428,0.00018866,2]
[360748319,1746966632775,-517.59,0.00019108,2]
[360748320,1746966633014,-1200.0,0.00019174,2]
[360748321,1746966633023,-182.10478716,0.00019176,2]
[360748322,1746966633033,-200.0,0.00019291,2]
[360748323,1746966633042,-300.0,0.00019532,2]
[360748324,1746966633053,-3916.49909205,0.00019533,2]
[360748325,1746966633062,-95.68435429,0.00019534,2]
[360748326,1746966638265,-9695.41564571,0.00019534,2]
[360748327,1746966638275,-174.92421884,0.00019569,2]
[360748328,1746966638284,-13272.44548928,0.00019569,2]
[360748329,1746966638295,-500.0,0.00019569,2]
[360748331,1746966638304,-500.0,0.00019569,2]
[360748332,1746966638314,-500.0,0.00019569,2]
[360748333,1746966638324,-500.0,0.00019569,2]
[360748334,1746966638333,-500.0,0.00019569,2]
[360748335,1746966638343,-500.0,0.00019569,2]
[360748336,1746966638352,-500.0,0.00019569,2]
[360748337,1746966638362,-500.0,0.00019569,2]
[360748338,1746966638372,-500.0,0.00019569,2]
[360748339,1746966638381,-500.0,0.00019569,2]
[360748340,1746966638390,-500.0,0.00019569,2]
[360748341,1746966638400,-500.0,0.00019569,2]
[360748342,1746966638409,-500.0,0.00019569,2]
[360748343,1746966638418,-500.0,0.00019569,2]
[360748344,1746966638427,-500.0,0.00019569,2]
[360748345,1746966638437,-500.0,0.00019569,2]
[360748346,1746966638446,-500.0,0.00019569,2]
[360748347,1746966638457,-500.0,0.00019569,2]
[360748348,1746966638466,-514.69636744,0.00019569,2]
[360748349,1746966638475,-500.0,0.00019569,2]
[360748350,1746966638485,-500.0,0.00019569,2]
[360748351,1746966638494,-500.0,0.00019569,2]
[360748352,1746966638504,-500.0,0.00019569,2]
[360748353,1746966638513,-500.0,0.00019569,2]
[360748354,1746966638522,-500.0,0.00019569,2]
[360748355,1746966638531,-500.0,0.00019569,2]
[360748356,1746966638541,-500.0,0.00019569,2]
[360748357,1746966638551,-500.0,0.00019569,2]
[360748358,1746966638560,-500.0,0.00019569,2]
[360748359,1746966638573,-500.0,0.00019569,2]
[360748360,1746966638583,-3348.80826907,0.0001957,2]
[360748361,1746966638592,-3348.80826902,0.00019592,2]
[360748362,1746966638602,-1035.02430697,0.0001961,2]
[360748363,1746966638611,-3348.80826902,0.00019614,2]
[360748364,1746966638620,-138.46996338,0.00019621,2]
[360748365,1746966638633,-22028.90727876,0.00019621,2]
[360748366,1746966638643,-3348.80826902,0.00019636,2]
[360748367,1746966638652,-1436.32230775,0.0001964,2]
[360748368,1746966638662,-153.36945483,0.00019649,2]
[360748369,1746966638671,-500.0,0.00019649,2]
[360748370,1746966638681,-500.0,0.00019649,2]
[360748371,1746966638691,-500.0,0.00019649,2]
[360748372,1746966638700,-500.0,0.00019649,2]
[360748373,1746966638709,-492.64200212,0.00019649,2]
[360748374,1746966638719,-75062.57974536,0.0001965,2]
[360748375,1746966638729,-1000.33831102,0.0001965,2]
[360748376,1746966638739,-51873.42731394,0.0001965,2]
[360748377,1746966638811,-1119.01234087,0.0001965,2]
[360748378,1746966638825,-1468.87302269,0.0001965,2]
[360748379,1746966638836,-1051.74850456,0.0001965,2]
[360748380,1746966638847,-829.18939595,0.0001965,2]
[360748381,1746966638867,-1144.44820268,0.0001965,2]
[360748386,1746966641575,200.0,0.00028,120]
[360748391,1746966643528,-13272.44548925,0.00019591,2]
[360748392,1746966643539,-18410.88031931,0.0001965,2]
[360748393,1746966643548,-432.1224313,0.00019655,2]
[360748394,1746966643557,-259.58159436,0.00019655,2]
[360748395,1746966643568,-202.23434831,0.00019655,2]
[360748396,1746966643578,-400.0,0.00019655,2]
[360748397,1746966643587,-400.0,0.00019655,2]
[360748398,1746966643596,-818.78,0.00019655,2]
[360748399,1746966643605,-485.23864543,0.00019655,2]
[360748400,1746966643616,-400.0,0.00019655,2]
[360748401,1746966643625,-450.0,0.00019655,2]
[360748402,1746966643635,-512.89568465,0.00019655,2]
[360748403,1746966643644,-400.0,0.00019655,2]
[360748404,1746966643654,-400.0,0.00019655,2]
[360748405,1746966643663,-534.91,0.00019655,2]
[360748406,1746966643673,-450.0,0.00019655,2]
[360748407,1746966643682,-400.0,0.00019655,2]
[360748408,1746966643692,-400.0,0.00019655,2]
[360748409,1746966643701,-400.0,0.00019655,2]
[360748410,1746966643712,-400.0,0.00019655,2]
[360748411,1746966643721,-400.0,0.00019655,2]
[360748412,1746966643731,-400.0,0.00019655,2]
[360748413,1746966643741,-3348.80826902,0.00019658,2]
[360748414,1746966643751,-151.0,0.00019658,2]
[360748415,1746966643760,-207.4,0.00019658,2]
[360748416,1746966643770,-668.65185757,0.00019658,2]
[360748417,1746966643779,-400.0,0.00019668,2]
[360748418,1746966643789,-402.45856029,0.00019668,2]
[360748419,1746966643798,-400.0,0.00019668,2]
[360748421,1746966643808,-400.0,0.00019668,2]
[360748423,1746966643817,-420.47,0.00019668,2]
[360748425,1746966643827,-400.0,0.00019668,2]
[360748427,1746966643836,-400.0,0.00019668,2]
[360748429,1746966643845,-397.00858396,0.00019669,2]
[360748431,1746966643855,-503.03949981,0.00019669,2]
[360748433,1746966643865,-400.0,0.00019669,2]
[360748436,1746966643875,-400.0,0.00019669,2]
[360748438,1746966643884,-504.18,0.00019669,2]
[360748440,1746966643894,-503.76,0.00019669,2]
[360748442,1746966643904,-197.72056,0.00019669,2]
[360748444,1746966643913,-400.0,0.00019669,2]
[360748446,1746966643923,-400.0,0.00019669,2]
[360748448,1746966643933,-400.0,0.00019669,2]
[360748450,1746966643943,-400.0,0.00019669,2]
[360748452,1746966643952,-540.0,0.00019669,2]
[360748455,1746966643962,-400.0,0.00019669,2]
[360748457,1746966643972,-400.0,0.00019669,2]
[360748459,1746966643982,-400.0,0.00019669,2]
[360748461,1746966643991,-400.0,0.00019669,2]
[360748463,1746966644001,-400.0,0.00019669,2]
[360748465,1746966644010,-400.0,0.00019669,2]
[360748467,1746966644020,-400.0,0.00019669,2]
[360748469,1746966644030,-400.0,0.00019669,2]
[360748471,1746966644040,-509.77,0.00019669,2]
[360748473,1746966644049,-400.0,0.00019669,2]
[360748475,1746966644058,-400.0,0.00019669,2]
[360748477,1746966644068,-400.0,0.00019669,2]
[360748479,1746966644077,-400.0,0.00019669,2]
[360748481,1746966644086,-400.0,0.00019669,2]
[360748483,1746966644095,-400.0,0.00019669,2]
[360748485,1746966644105,-400.0,0.00019669,2]
[360748487,1746966644114,-400.0,0.00019669,2]
[360748489,1746966644123,-400.0,0.00019669,2]
[360748491,1746966644134,-400.0,0.00019669,2]
[360748493,1746966644144,-17824.80473153,0.00019669,2]
[360748494,1746966644156,-43691.89526847,0.00019669,2]
[360748496,1746966644166,-400.0,0.00019669,2]
[360748498,1746966644175,-400.0,0.00019669,2]
[360748500,1746966644184,-400.0,0.00019669,2]
[360748502,1746966644194,-982.0,0.00019669,2]
[360748504,1746966644204,-1447.64,0.00019669,2]
[360748506,1746966644216,-400.0,0.00019669,2]
[360748508,1746966644225,-400.0,0.00019669,2]
[360748510,1746966644235,-400.0,0.00019669,2]
[360748512,1746966644244,-400.0,0.00019669,2]
[360748514,1746966644253,-230.39,0.00019669,2]